[Event "*** Titled Tuesday Blitz"]
[Site "Chess.com"]
[Date "2020.03.03"]
[Round "1"]
[White "Saloni1299"]
[Black "albi1999"]
[Result "0-1"]
[WhiteElo "2040"]
[BlackElo "2575"]
[TimeControl "180+1"]
[EndTime "9:06:41 PST"]
[Termination "albi1999 won by resignation"]

1. e4 {[%clk 0:02:59.4]} 1... c5 {[%clk 0:02:59.5]} 2. Nf3 {[%clk 0:02:58.7]}
2... Nc6 {[%clk 0:02:58.8]} 3. d4 {[%clk 0:02:58.6]} 3... cxd4 {[%clk
0:02:58.2]} 4. Nxd4 {[%clk 0:02:59.5]} 4... Nf6 {[%clk 0:02:56.9]} 5. Nc3 {[%clk
0:02:57.4]} 5... e5 {[%clk 0:02:55.9]} 6. Ndb5 {[%clk 0:02:56.7]} 6... d6 {[%clk
0:02:55.6]} 7. Bg5 {[%clk 0:02:54.5]} 7... a6 {[%clk 0:02:56.2]} 8. Na3 {[%clk
0:02:54.6]} 8... b5 {[%clk 0:02:56.7]} 9. Nd5 {[%clk 0:02:54.6]} 9... Be7 {[%clk
0:02:56.9]} 10. Bxf6 {[%clk 0:02:54.8]} 10... Bxf6 {[%clk 0:02:57.8]} 11. c4
{[%clk 0:02:55.3]} 11... b4 {[%clk 0:02:57.1]} 12. Nc2 {[%clk 0:02:55.9]} 12...
O-O {[%clk 0:02:57.5]} 13. g3 {[%clk 0:02:54.6]} 13... a5 {[%clk 0:02:57.3]} 14.
b3 {[%clk 0:02:54.1]} 14... Bg5 {[%clk 0:02:55]} 15. h4 {[%clk 0:02:54.2]} 15...
Bh6 {[%clk 0:02:54.3]} 16. Bh3 {[%clk 0:02:54.7]} 16... Be6 {[%clk 0:02:54]} 17.
Kf1 {[%clk 0:02:52.6]} 17... Ra7 {[%clk 0:02:52.2]} 18. Kg2 {[%clk 0:02:51.6]}
18... g6 {[%clk 0:02:52.5]} 19. Qd3 {[%clk 0:01:51.8]} 19... f5 {[%clk
0:02:40.6]} 20. Rad1 {[%clk 0:01:50.8]} 20... Kg7 {[%clk 0:02:22]} 21. Qe2
{[%clk 0:01:38.5]} 21... Raf7 {[%clk 0:02:16.1]} 22. Rhf1 {[%clk 0:01:22.3]}
22... Qd7 {[%clk 0:01:55]} 23. f4 {[%clk 0:00:47.6]} 23... exf4 {[%clk
0:01:34.7]} 24. Nxf4 {[%clk 0:00:40.8]} 24... Bxf4 {[%clk 0:01:33.4]} 25. Rxf4
{[%clk 0:00:39.8]} 25... fxe4 {[%clk 0:01:28.8]} 26. Bxe6 {[%clk 0:00:17.4]}
26... Qxe6 {[%clk 0:01:29.7]} 27. Rxf7+ {[%clk 0:00:08.7]} 27... Rxf7 {[%clk
0:01:30.6]} 28. Ne3 {[%clk 0:00:09.2]} 28... Ne5 {[%clk 0:01:25.7]} 29. Nd5
{[%clk 0:00:04.3]} 29... Qg4 {[%clk 0:01:22.1]} 30. Qxg4 {[%clk 0:00:02.9]}
30... Nxg4 {[%clk 0:01:23]} 31. Rf1 {[%clk 0:00:02.8]} 31... Rxf1 {[%clk
0:01:15.2]} 32. Kxf1 {[%clk 0:00:03.7]} 32... Kf7 {[%clk 0:01:15.8]} 33. Ke2
{[%clk 0:00:04.2]} 33... Ke6 {[%clk 0:01:14.8]} 34. Ne3 {[%clk 0:00:04.7]} 34...
Nxe3 {[%clk 0:01:12.6]} 35. Kxe3 {[%clk 0:00:05.1]} 35... Ke5 {[%clk 0:01:13.5]}
36. g4 {[%clk 0:00:05.1]} 36... h5 {[%clk 0:01:13.8]} 37. g5 {[%clk 0:00:03]}
37... d5 {[%clk 0:01:11.8]} 38. c5 {[%clk 0:00:02.4]} 38... d4+ {[%clk
0:01:12.1]} 39. Kd2 {[%clk 0:00:02.7]} 39... Kd5 {[%clk 0:01:13]} 40. c6 {[%clk
0:00:01.9]} 40... Kxc6 {[%clk 0:01:12.3]} 0-1

[Event "*** Titled Tuesday Blitz"]
[Site "Chess.com"]
[Date "2020.03.03"]
[Round "1"]
[White "GameOverBro"]
[Black "Ariadna_Atreides"]
[Result "1-0"]
[WhiteElo "2586"]
[BlackElo "2118"]
[TimeControl "180+1"]
[EndTime "9:06:43 PST"]
[Termination "GameOverBro won on time"]

1. e4 {[%clk 0:03:00.9]} 1... c5 {[%clk 0:02:59.4]} 2. Ne2 {[%clk 0:03:00.5]}
2... Nc6 {[%clk 0:02:58]} 3. Nbc3 {[%clk 0:03:00.1]} 3... d6 {[%clk 0:02:56.8]}
4. g3 {[%clk 0:02:59.4]} 4... Nf6 {[%clk 0:02:52.5]} 5. Bg2 {[%clk 0:02:59.5]}
5... g6 {[%clk 0:02:52.3]} 6. d4 {[%clk 0:02:59.4]} 6... cxd4 {[%clk 0:02:51.8]}
7. Nxd4 {[%clk 0:03:00.3]} 7... Nxd4 {[%clk 0:02:45.8]} 8. Qxd4 {[%clk
0:03:01.2]} 8... Bg7 {[%clk 0:02:45.7]} 9. O-O {[%clk 0:02:59.9]} 9... O-O
{[%clk 0:02:45]} 10. a4 {[%clk 0:03:00]} 10... a6 {[%clk 0:02:29.7]} 11. a5
{[%clk 0:02:58.5]} 11... Rb8 {[%clk 0:02:28.2]} 12. Qb4 {[%clk 0:02:52.4]} 12...
Bd7 {[%clk 0:02:19.1]} 13. Be3 {[%clk 0:02:51.2]} 13... Bc6 {[%clk 0:02:12.4]}
14. Rfd1 {[%clk 0:02:48.6]} 14... Qc8 {[%clk 0:02:04.8]} 15. h3 {[%clk
0:02:46.2]} 15... Nd7 {[%clk 0:01:52.7]} 16. Rd2 {[%clk 0:02:32.9]} 16... h6
{[%clk 0:01:48.5]} 17. Rad1 {[%clk 0:02:31.6]} 17... Kh7 {[%clk 0:01:44.7]} 18.
Kh2 {[%clk 0:02:31.4]} 18... f5 {[%clk 0:01:31.4]} 19. Qb3 {[%clk 0:02:09.9]}
19... Bxc3 {[%clk 0:01:18.2]} 20. bxc3 {[%clk 0:01:55.4]} 20... Bxe4 {[%clk
0:01:14.1]} 21. Bxe4 {[%clk 0:01:50.7]} 21... fxe4 {[%clk 0:01:13.6]} 22. Qe6
{[%clk 0:01:46.8]} 22... Qe8 {[%clk 0:00:58.6]} 23. Qxe4 {[%clk 0:01:38.3]}
23... Nc5 {[%clk 0:00:51]} 24. Qh4 {[%clk 0:01:35.2]} 24... h5 {[%clk
0:00:42.1]} 25. g4 {[%clk 0:01:17.3]} 25... Ne4 {[%clk 0:00:25.5]} 26. Rd5
{[%clk 0:01:15.9]} 26... Nf6 {[%clk 0:00:24.8]} 27. gxh5 {[%clk 0:01:11.8]}
27... gxh5 {[%clk 0:00:17.6]} 28. Rg5 {[%clk 0:01:08.6]} 28... Rg8 {[%clk
0:00:16.7]} 29. Rdg1 {[%clk 0:01:08.1]} 29... Qf7 {[%clk 0:00:10.1]} 30. Qf4
{[%clk 0:01:02.7]} 30... Rxg5 {[%clk 0:00:03.3]} 31. Qxg5 {[%clk 0:00:57.7]}
31... Ng8 {[%clk 0:00:02.8]} 32. Qg2 {[%clk 0:00:44.7]} 1-0

[Event "*** Titled Tuesday Blitz"]
[Site "Chess.com"]
[Date "2020.03.03"]
[Round "1"]
[White "ZEN-22"]
[Black "RitvarsReimanis"]
[Result "0-1"]
[WhiteElo "2206"]
[BlackElo "2619"]
[TimeControl "180+1"]
[EndTime "9:06:47 PST"]
[Termination "RitvarsReimanis won by checkmate"]

1. e4 {[%clk 0:02:59.6]} 1... c5 {[%clk 0:02:59.4]} 2. d4 {[%clk 0:02:59]} 2...
cxd4 {[%clk 0:02:59.6]} 3. c3 {[%clk 0:02:59.9]} 3... Nf6 {[%clk 0:02:59.5]} 4.
e5 {[%clk 0:02:59.7]} 4... Nd5 {[%clk 0:03:00.2]} 5. Qxd4 {[%clk 0:02:59.5]}
5... e6 {[%clk 0:03:00.2]} 6. c4 {[%clk 0:02:59.1]} 6... Nc6 {[%clk 0:02:59.4]}
7. Qe4 {[%clk 0:02:59.1]} 7... f5 {[%clk 0:02:59.7]} 8. Qe2 {[%clk 0:02:57.1]}
8... Nde7 {[%clk 0:02:38.6]} 9. Nc3 {[%clk 0:02:55.2]} 9... Ng6 {[%clk
0:02:38.5]} 10. f4 {[%clk 0:02:50.2]} 10... Bc5 {[%clk 0:02:32.3]} 11. Nf3
{[%clk 0:02:49.6]} 11... O-O {[%clk 0:02:32.1]} 12. Be3 {[%clk 0:02:48.9]} 12...
Bxe3 {[%clk 0:02:24.8]} 13. Qxe3 {[%clk 0:02:48.8]} 13... Qb6 {[%clk 0:02:19.5]}
14. Qxb6 {[%clk 0:02:48.1]} 14... axb6 {[%clk 0:02:20.4]} 15. g3 {[%clk
0:02:48.3]} 15... Nb4 {[%clk 0:02:17.2]} 16. Kd2 {[%clk 0:02:46.5]} 16... d6
{[%clk 0:02:13.5]} 17. exd6 {[%clk 0:02:43.7]} 17... Rd8 {[%clk 0:02:14]} 18.
Nb5 {[%clk 0:02:41.4]} 18... Bd7 {[%clk 0:02:12]} 19. Nc7 {[%clk 0:02:41.4]}
19... Rxa2 {[%clk 0:02:11.1]} 20. Rxa2 {[%clk 0:02:40.2]} 20... Nxa2 {[%clk
0:02:12]} 21. Be2 {[%clk 0:02:39.4]} 21... Bc6 {[%clk 0:02:11.8]} 22. c5 {[%clk
0:02:27.2]} 22... bxc5 {[%clk 0:02:08.9]} 23. Bc4 {[%clk 0:02:23.6]} 23... Bxf3
{[%clk 0:02:00.5]} 24. Rf1 {[%clk 0:02:21.3]} 24... Rxd6+ {[%clk 0:01:56.9]} 25.
Ke3 {[%clk 0:02:21.2]} 25... Bd5 {[%clk 0:01:52.8]} 26. Nxd5 {[%clk 0:02:21.2]}
26... exd5 {[%clk 0:01:53.7]} 27. Bxa2 {[%clk 0:02:21.8]} 27... Kf7 {[%clk
0:01:42.3]} 28. b4 {[%clk 0:02:21]} 28... b6 {[%clk 0:01:40.4]} 29. bxc5 {[%clk
0:02:20.4]} 29... bxc5 {[%clk 0:01:41.3]} 30. Rb1 {[%clk 0:02:20.1]} 30... Ne7
{[%clk 0:01:41.2]} 31. Rb7 {[%clk 0:02:18.6]} 31... Kf6 {[%clk 0:01:41.5]} 32.
Rc7 {[%clk 0:02:18.5]} 32... Ra6 {[%clk 0:01:35.2]} 33. Bb1 {[%clk 0:02:15.5]}
33... Ra3+ {[%clk 0:01:33.1]} 34. Kd2 {[%clk 0:02:15]} 34... c4 {[%clk
0:01:29.3]} 35. Rb7 {[%clk 0:02:11.8]} 35... g6 {[%clk 0:01:22]} 36. Rb6+ {[%clk
0:02:11.2]} 36... Kf7 {[%clk 0:01:22.4]} 37. Bc2 {[%clk 0:02:10.6]} 37... d4
{[%clk 0:01:17.9]} 38. Rd6 {[%clk 0:02:09.4]} 38... d3 {[%clk 0:01:16]} 39. Bd1
{[%clk 0:02:09.8]} 39... Ra2+ {[%clk 0:01:10.4]} 40. Kc3 {[%clk 0:02:09.5]}
40... Rxh2 {[%clk 0:01:03.2]} 41. Kxc4 {[%clk 0:02:09.2]} 41... d2 {[%clk
0:00:52.1]} 42. Kc3 {[%clk 0:02:08.4]} 42... Rg2 {[%clk 0:00:50.2]} 43. Bb3+
{[%clk 0:02:08]} 43... Kg7 {[%clk 0:00:46.4]} 44. Rd3 {[%clk 0:02:05.7]} 44...
Kh6 {[%clk 0:00:30.4]} 45. Bd1 {[%clk 0:02:06.6]} 45... Ng8 {[%clk 0:00:25.6]}
46. Rd6 {[%clk 0:02:04.6]} 46... Kg7 {[%clk 0:00:24.6]} 47. Rd7+ {[%clk
0:02:03.3]} 47... Kh6 {[%clk 0:00:21.4]} 48. Rd3 {[%clk 0:02:04.2]} 48... Nf6
{[%clk 0:00:21.7]} 49. g4 {[%clk 0:02:04.7]} 49... fxg4 {[%clk 0:00:20]} 50. Kd4
{[%clk 0:02:03.8]} 50... g3 {[%clk 0:00:18]} 51. Ke5 {[%clk 0:02:03.2]} 51...
Nh5 {[%clk 0:00:17.7]} 52. f5 {[%clk 0:02:02.4]} 52... gxf5 {[%clk 0:00:16.9]}
53. Kxf5 {[%clk 0:02:01.9]} 53... Rf2+ {[%clk 0:00:17.5]} 54. Kg4 {[%clk
0:01:51.7]} 54... g2 {[%clk 0:00:17.9]} 55. Rd6+ {[%clk 0:01:51.4]} 55... Nf6+
{[%clk 0:00:18.2]} 56. Kh3 {[%clk 0:01:49.8]} 56... g1=Q {[%clk 0:00:17.6]} 57.
Rd4 {[%clk 0:01:44.5]} 57... Rh2# {[%clk 0:00:17.7]} 0-1

[Event "*** Titled Tuesday Blitz"]
[Site "Chess.com"]
[Date "2020.03.03"]
[Round "1"]
[White "ZWISCHENZUGGED"]
[Black "DiamondCrusher22"]
[Result "1-0"]
[WhiteElo "2570"]
[BlackElo "2038"]
[TimeControl "180+1"]
[EndTime "9:06:52 PST"]
[Termination "ZWISCHENZUGGED won on time"]

1. d4 {[%clk 0:03:00.2]} 1... d5 {[%clk 0:02:59.5]} 2. c4 {[%clk 0:03:00.1]}
2... c6 {[%clk 0:02:59.6]} 3. Nf3 {[%clk 0:02:59.9]} 3... Nf6 {[%clk 0:02:56.5]}
4. Nc3 {[%clk 0:02:59.7]} 4... dxc4 {[%clk 0:02:55.3]} 5. a4 {[%clk 0:02:59.2]}
5... e6 {[%clk 0:02:52.4]} 6. e3 {[%clk 0:02:58.5]} 6... c5 {[%clk 0:02:50.9]}
7. Bxc4 {[%clk 0:02:58.7]} 7... Nc6 {[%clk 0:02:50.7]} 8. O-O {[%clk 0:02:54.8]}
8... Be7 {[%clk 0:02:50.1]} 9. dxc5 {[%clk 0:02:46.3]} 9... Qxd1 {[%clk
0:02:49.2]} 10. Rxd1 {[%clk 0:02:46.1]} 10... Bxc5 {[%clk 0:02:48.8]} 11. Bd2
{[%clk 0:02:08.1]} 11... O-O {[%clk 0:02:46.6]} 12. Be1 {[%clk 0:01:56.7]} 12...
a6 {[%clk 0:02:21.2]} 13. a5 {[%clk 0:01:27]} 13... b6 {[%clk 0:01:21.6]} 14.
Na4 {[%clk 0:01:18]} 14... Rb8 {[%clk 0:00:48.7]} 15. Nxc5 {[%clk 0:00:45.3]}
15... bxc5 {[%clk 0:00:40.9]} 16. Rd6 {[%clk 0:00:39.7]} 16... Nb4 {[%clk
0:00:14.5]} 17. b3 {[%clk 0:00:20.6]} 17... Ne4 {[%clk 0:00:10.4]} 18. Rdd1
{[%clk 0:00:20]} 18... Nc2 {[%clk 0:00:10.1]} 19. Rac1 {[%clk 0:00:20.3]} 19...
Nxe1 {[%clk 0:00:09.6]} 20. Rxe1 {[%clk 0:00:21.2]} 20... Bb7 {[%clk 0:00:04.9]}
21. Red1 {[%clk 0:00:21.1]} 21... Rfd8 {[%clk 0:00:04.8]} 22. Kf1 {[%clk
0:00:21.7]} 22... Rxd1+ {[%clk 0:00:02.3]} 23. Rxd1 {[%clk 0:00:22.6]} 23... Nc3
{[%clk 0:00:01.9]} 24. Rd3 {[%clk 0:00:22.3]} 24... Nb5 {[%clk 0:00:01.5]} 25.
Rd7 {[%clk 0:00:21.4]} 25... Kf8 {[%clk 0:00:01.6]} 26. Ne5 {[%clk 0:00:20.7]}
26... Ke8 {[%clk 0:00:01.9]} 27. Rxf7 {[%clk 0:00:19.6]} 27... Nd6 {[%clk
0:00:02]} 28. Rxg7 {[%clk 0:00:18.7]} 28... Nxc4 {[%clk 0:00:01.5]} 29. bxc4
{[%clk 0:00:18.1]} 1-0

[Event "*** Titled Tuesday Blitz"]
[Site "Chess.com"]
[Date "2020.03.03"]
[Round "1"]
[White "Witik"]
[Black "inegrepus"]
[Result "1-0"]
[WhiteElo "2633"]
[BlackElo "2245"]
[TimeControl "180+1"]
[EndTime "9:06:53 PST"]
[Termination "Witik won by resignation"]

1. d4 {[%clk 0:02:57.5]} 1... Nf6 {[%clk 0:02:56.8]} 2. c4 {[%clk 0:02:53.9]}
2... e6 {[%clk 0:02:56.7]} 3. Nf3 {[%clk 0:02:48.6]} 3... Bb4+ {[%clk
0:02:55.9]} 4. Nbd2 {[%clk 0:02:44.8]} 4... O-O {[%clk 0:02:54.8]} 5. e3 {[%clk
0:02:44.3]} 5... d5 {[%clk 0:02:51.9]} 6. a3 {[%clk 0:02:43.8]} 6... Be7 {[%clk
0:02:48.8]} 7. b4 {[%clk 0:02:43.6]} 7... a5 {[%clk 0:02:42.9]} 8. b5 {[%clk
0:02:43.4]} 8... dxc4 {[%clk 0:02:40.8]} 9. Nxc4 {[%clk 0:02:31.1]} 9... Nbd7
{[%clk 0:02:37.8]} 10. Bd3 {[%clk 0:02:27.7]} 10... c6 {[%clk 0:02:25.2]} 11.
bxc6 {[%clk 0:02:24.3]} 11... bxc6 {[%clk 0:02:25]} 12. O-O {[%clk 0:02:08.4]}
12... c5 {[%clk 0:02:22]} 13. Bb2 {[%clk 0:01:57]} 13... Ba6 {[%clk 0:02:14.7]}
14. Qe2 {[%clk 0:01:41.8]} 14... Bxc4 {[%clk 0:01:43.2]} 15. Bxc4 {[%clk
0:01:41.5]} 15... cxd4 {[%clk 0:01:41.9]} 16. Nxd4 {[%clk 0:01:35.4]} 16... Nb6
{[%clk 0:01:36.5]} 17. Bb5 {[%clk 0:01:23.9]} 17... Nbd5 {[%clk 0:01:31.7]} 18.
Nc6 {[%clk 0:01:21]} 18... Qd6 {[%clk 0:01:24]} 19. Be5 {[%clk 0:01:18.3]} 19...
Qc5 {[%clk 0:01:17.4]} 20. Rfc1 {[%clk 0:01:08.7]} 20... Qb6 {[%clk 0:01:14.7]}
21. e4 {[%clk 0:01:06.3]} 21... Bc5 {[%clk 0:00:54.7]} 22. exd5 {[%clk
0:01:03.6]} 22... Nxd5 {[%clk 0:00:54.9]} 23. Qg4 {[%clk 0:00:40.2]} 23... Bxf2+
{[%clk 0:00:52.8]} 24. Kh1 {[%clk 0:00:39.4]} 24... g6 {[%clk 0:00:53.1]} 25.
Qf3 {[%clk 0:00:28.4]} 25... Be3 {[%clk 0:00:43.8]} 26. Qxd5 {[%clk 0:00:26.9]}
26... f6 {[%clk 0:00:28.4]} 27. Qxe6+ {[%clk 0:00:25.2]} 27... Rf7 {[%clk
0:00:28.8]} 28. Bc4 {[%clk 0:00:22]} 28... Rf8 {[%clk 0:00:19.9]} 29. Qxf6
{[%clk 0:00:20.1]} 1-0

[Event "*** Titled Tuesday Blitz"]
[Site "Chess.com"]
[Date "2020.03.03"]
[Round "1"]
[White "suyu28"]
[Black "FairChess_on_YouTube"]
[Result "1-0"]
[WhiteElo "2568"]
[BlackElo "3046"]
[TimeControl "180+1"]
[EndTime "9:06:54 PST"]
[Termination "suyu28 won by resignation"]

1. d4 {[%clk 0:02:56.3]} 1... Nf6 {[%clk 0:02:59.1]} 2. c4 {[%clk 0:02:46.3]}
2... e6 {[%clk 0:02:51.3]} 3. Nc3 {[%clk 0:02:33.2]} 3... Bb4 {[%clk 0:02:49.2]}
4. Qc2 {[%clk 0:02:26.7]} 4... c5 {[%clk 0:02:48.6]} 5. dxc5 {[%clk 0:02:24.5]}
5... O-O {[%clk 0:02:48.2]} 6. Nf3 {[%clk 0:02:22.2]} 6... Na6 {[%clk
0:02:42.9]} 7. a3 {[%clk 0:02:20.8]} 7... Bxc3+ {[%clk 0:02:42.1]} 8. Qxc3
{[%clk 0:02:17.9]} 8... Nxc5 {[%clk 0:02:43]} 9. e3 {[%clk 0:02:16.9]} 9... b6
{[%clk 0:02:35.2]} 10. Be2 {[%clk 0:02:12.9]} 10... Bb7 {[%clk 0:02:33.8]} 11.
O-O {[%clk 0:02:09]} 11... Rc8 {[%clk 0:02:33.5]} 12. b4 {[%clk 0:01:59]} 12...
Nce4 {[%clk 0:02:33.1]} 13. Qb3 {[%clk 0:01:56.9]} 13... d5 {[%clk 0:02:20.5]}
14. Bb2 {[%clk 0:01:48.2]} 14... Ng4 {[%clk 0:02:08.3]} 15. h3 {[%clk
0:01:25.7]} 15... dxc4 {[%clk 0:02:07.6]} 16. Bxc4 {[%clk 0:01:21]} 16... Ng5
{[%clk 0:01:24.4]} 17. Nxg5 {[%clk 0:01:00.5]} 17... Qxg5 {[%clk 0:01:25.3]} 18.
f4 {[%clk 0:01:00.4]} 18... Qg6 {[%clk 0:00:25.4]} 19. Bd3 {[%clk 0:00:55.7]}
19... Be4 {[%clk 0:00:22.4]} 20. Bxe4 {[%clk 0:00:50.5]} 20... Qxe4 {[%clk
0:00:23.3]} 21. hxg4 {[%clk 0:00:50.7]} 21... Rc2 {[%clk 0:00:23.7]} 22. Rf2
{[%clk 0:00:50.4]} 22... Rfc8 {[%clk 0:00:23.2]} 23. Raf1 {[%clk 0:00:49]} 23...
h6 {[%clk 0:00:21.1]} 24. Bd4 {[%clk 0:00:48.1]} 24... Kh7 {[%clk 0:00:16.2]}
25. Qb1 {[%clk 0:00:46.8]} 25... f5 {[%clk 0:00:12.1]} 26. gxf5 {[%clk
0:00:45.9]} 26... exf5 {[%clk 0:00:11.2]} 27. Rxc2 {[%clk 0:00:45.7]} 27... Rxc2
{[%clk 0:00:11.7]} 28. Rf2 {[%clk 0:00:27.4]} 1-0

[Event "*** Titled Tuesday Blitz"]
[Site "Chess.com"]
[Date "2020.03.03"]
[Round "1"]
[White "Eloist"]
[Black "vladimirdamjanovic"]
[Result "0-1"]
[WhiteElo "2245"]
[BlackElo "2633"]
[TimeControl "180+1"]
[EndTime "9:06:59 PST"]
[Termination "vladimirdamjanovic won by resignation"]

1. e4 {[%clk 0:03:00]} 1... c5 {[%clk 0:03:00.1]} 2. Nf3 {[%clk 0:02:57.7]} 2...
d6 {[%clk 0:03:00.6]} 3. Bb5+ {[%clk 0:02:56.7]} 3... Bd7 {[%clk 0:03:00]} 4.
Bxd7+ {[%clk 0:02:56.5]} 4... Qxd7 {[%clk 0:03:00.9]} 5. c4 {[%clk 0:02:56.5]}
5... Nc6 {[%clk 0:03:00.2]} 6. d4 {[%clk 0:02:53.2]} 6... cxd4 {[%clk
0:03:01.1]} 7. Nxd4 {[%clk 0:02:53.1]} 7... Nf6 {[%clk 0:03:01.6]} 8. Nc3 {[%clk
0:02:52.3]} 8... g6 {[%clk 0:03:02.1]} 9. f3 {[%clk 0:02:51.7]} 9... Nxd4 {[%clk
0:03:01.3]} 10. Qxd4 {[%clk 0:02:50.9]} 10... Bg7 {[%clk 0:03:02.2]} 11. O-O
{[%clk 0:02:47.3]} 11... O-O {[%clk 0:02:59.4]} 12. Be3 {[%clk 0:02:42.4]} 12...
Ng4 {[%clk 0:02:57]} 13. Qd2 {[%clk 0:02:41.5]} 13... Nxe3 {[%clk 0:02:56.9]}
14. Qxe3 {[%clk 0:02:41.5]} 14... Rfc8 {[%clk 0:02:56.3]} 15. b3 {[%clk
0:02:39.9]} 15... Bxc3 {[%clk 0:02:54.7]} 16. Qxc3 {[%clk 0:02:38.6]} 16... b5
{[%clk 0:02:55.3]} 17. Rac1 {[%clk 0:02:25.8]} 17... bxc4 {[%clk 0:02:55.2]} 18.
bxc4 {[%clk 0:02:25.7]} 18... Rab8 {[%clk 0:02:52.2]} 19. Rfd1 {[%clk
0:02:23.6]} 19... Qa4 {[%clk 0:02:52.2]} 20. Rb1 {[%clk 0:01:56.8]} 20... Qxa2
{[%clk 0:02:14.9]} 21. Rxb8 {[%clk 0:01:50.1]} 21... Rxb8 {[%clk 0:02:15.8]} 22.
Ra1 {[%clk 0:01:01.3]} 22... Rb1+ {[%clk 0:02:14.5]} 23. Rxb1 {[%clk 0:00:59.9]}
23... Qxb1+ {[%clk 0:02:15.4]} 24. Kf2 {[%clk 0:00:58.2]} 24... Qb6+ {[%clk
0:02:15.7]} 25. Kg3 {[%clk 0:00:56.8]} 25... a5 {[%clk 0:02:06.1]} 26. e5 {[%clk
0:00:46]} 26... Qb4 {[%clk 0:01:40.3]} 27. Qa1 {[%clk 0:00:39.3]} 27... dxe5
{[%clk 0:01:32.6]} 28. Qc1 {[%clk 0:00:27.8]} 28... Qc5 {[%clk 0:01:18.1]} 29.
h4 {[%clk 0:00:20.1]} 29... a4 {[%clk 0:01:15.1]} 30. h5 {[%clk 0:00:20.3]}
30... a3 {[%clk 0:01:07.8]} 31. h6 {[%clk 0:00:20.3]} 31... Qd4 {[%clk
0:00:52.9]} 32. Qb1 {[%clk 0:00:15]} 32... Qf4+ {[%clk 0:00:48.3]} 33. Kf2
{[%clk 0:00:15.1]} 33... Qxh6 {[%clk 0:00:44.8]} 34. Qb8+ {[%clk 0:00:14.5]}
34... Kg7 {[%clk 0:00:45.2]} 35. c5 {[%clk 0:00:13.6]} 35... Qd2+ {[%clk
0:00:44.2]} 36. Kg3 {[%clk 0:00:13.1]} 36... Qf4+ {[%clk 0:00:44]} 37. Kh3
{[%clk 0:00:10.9]} 37... Qf5+ {[%clk 0:00:40.8]} 38. Kh2 {[%clk 0:00:10.4]}
38... a2 {[%clk 0:00:38.4]} 39. c6 {[%clk 0:00:10.1]} 39... a1=Q {[%clk
0:00:36.6]} 40. c7 {[%clk 0:00:10.1]} 40... Qf4+ {[%clk 0:00:36.8]} 0-1

[Event "*** Titled Tuesday Blitz"]
[Site "Chess.com"]
[Date "2020.03.03"]
[Round "1"]
[White "ural58"]
[Black "vinniethepooh"]
[Result "1-0"]
[WhiteElo "2415"]
[BlackElo "2726"]
[TimeControl "180+1"]
[EndTime "9:07:03 PST"]
[Termination "ural58 won on time"]

1. e4 {[%clk 0:02:54.1]} 1... c5 {[%clk 0:02:59.9]} 2. b3 {[%clk 0:02:53.9]}
2... Nc6 {[%clk 0:02:59.3]} 3. Bb2 {[%clk 0:02:54]} 3... d6 {[%clk 0:02:59.2]}
4. f4 {[%clk 0:02:53.8]} 4... Nf6 {[%clk 0:02:57.4]} 5. Qf3 {[%clk 0:02:54.2]}
5... e5 {[%clk 0:02:44]} 6. Bb5 {[%clk 0:02:52.9]} 6... Bd7 {[%clk 0:02:33.1]}
7. Ne2 {[%clk 0:02:52.8]} 7... a6 {[%clk 0:02:23.1]} 8. Bxc6 {[%clk 0:02:52.5]}
8... Bxc6 {[%clk 0:02:24]} 9. d3 {[%clk 0:02:52.6]} 9... Qc7 {[%clk 0:02:17.3]}
10. c4 {[%clk 0:02:51.2]} 10... Be7 {[%clk 0:02:16.2]} 11. Nbc3 {[%clk
0:02:51.1]} 11... Nd7 {[%clk 0:02:12.6]} 12. O-O {[%clk 0:02:47.9]} 12... Bf6
{[%clk 0:02:09.9]} 13. Ng3 {[%clk 0:02:32.6]} 13... O-O-O {[%clk 0:02:00.9]} 14.
Nh5 {[%clk 0:02:30.3]} 14... Rhg8 {[%clk 0:01:30.5]} 15. Nd5 {[%clk 0:02:27]}
15... Bxd5 {[%clk 0:01:29.7]} 16. exd5 {[%clk 0:02:24.6]} 16... e4 {[%clk
0:01:23.4]} 17. Qf2 {[%clk 0:02:18]} 17... Bxb2 {[%clk 0:01:17.4]} 18. Qxb2
{[%clk 0:02:17.7]} 18... g6 {[%clk 0:01:10.9]} 19. Ng3 {[%clk 0:02:03.6]} 19...
exd3 {[%clk 0:01:09.8]} 20. Rad1 {[%clk 0:02:03.7]} 20... f5 {[%clk 0:01:05.4]}
21. Rxd3 {[%clk 0:02:03.6]} 21... Rde8 {[%clk 0:01:05.7]} 22. Kf2 {[%clk
0:01:19.2]} 22... h5 {[%clk 0:01:04.5]} 23. Re1 {[%clk 0:01:17.7]} 23... h4
{[%clk 0:00:57.1]} 24. Nf1 {[%clk 0:01:17.2]} 24... Rxe1 {[%clk 0:00:52.2]} 25.
Kxe1 {[%clk 0:01:18.1]} 25... Qd8 {[%clk 0:00:45.9]} 26. Re3 {[%clk 0:01:16.8]}
26... Re8 {[%clk 0:00:39.4]} 27. Qg7 {[%clk 0:01:14.8]} 27... Rxe3+ {[%clk
0:00:14.7]} 28. Nxe3 {[%clk 0:01:15.7]} 28... Qf6 {[%clk 0:00:15.6]} 29. Qxf6
{[%clk 0:00:40.7]} 29... Nxf6 {[%clk 0:00:16.5]} 30. h3 {[%clk 0:00:41.4]} 30...
Nh5 {[%clk 0:00:13.2]} 31. Kf2 {[%clk 0:00:33.3]} 31... Nxf4 {[%clk 0:00:13.3]}
32. Kf3 {[%clk 0:00:34.1]} 32... Nd3 {[%clk 0:00:13.1]} 33. Nd1 {[%clk
0:00:26.9]} 1-0